bitfinex/quotes_ETHUSD_20251111
["timestamp","ask_amount","ask_price","bid_price","bid_amount"]
[1762870341738,1.1337408,3530.3,3530.2,1.489]
[1762870341936,1.1337408,3530.3,3530.2,4.32170069]
[1762870343392,6.44049262,3531.2,3530.8,0.5]
[1762870343539,6.44049262,3531.2,3530.8,0.687]
[1762870343540,1.1337408,3531.1,3530.8,0.687]
[1762870343880,6.40189262,3531.2,3531.1,0.5]
[1762870344109,7.53563342,3531.2,3531.1,0.5]
[1762870344309,7.53483342,3531.2,3531.1,0.5]
[1762870344513,6.40109262,3531.2,3531.1,0.5]
[1762870345148,7.53483342,3531.2,3531.1,0.5]
[1762870350769,7.57343342,3531.2,3531.1,0.5]
[1762870351069,1.1337408,3531.2,3531.1,3.3319787]
[1762870351271,1.1337408,3531.2,3531.1,0.5]
[1762870351904,1.1337408,3531.2,3531.1,1.6291]
[1762870352255,1.1337408,3531.2,3531.1,1.1735]
[1762870352673,1.1337408,3531.2,3531.1,4.0054787]
[1762870353294,1.1337408,3531.2,3531.1,4.4610787]
[1762870355715,6.40189262,3531.9,3531.6,0.5]
[1762870355910,6.34,3532.4,3531.6,0.5]
[1762870355911,7.53563342,3531.7,3531.6,0.5]
[1762870356074,7.57423342,3531.7,3531.6,0.5]
[1762870356403,1.1337408,3531.6,3531.4,0.5]
[1762870356764,0.0386,3531.5,3531.4,0.5]
[1762870357069,1.1337408,3531.6,3531.4,0.5]
[1762870357378,1.1357408,3531.6,3531.4,0.9922]
[1762870357585,1.1357408,3531.6,3531.5,0.4922]
[1762870358092,0.002,3531.6,3531.5,4.27945793]
[1762870358807,0.002,3531.6,3531.5,1.4478]
[1762870359659,1.1743408,3531.6,3531.5,0.5]
[1762870361887,1.1743408,3531.6,3530.8,2.83217263]
[1762870362205,6.40189262,3531.1,3530.9,0.686]
[1762870362403,7.53563342,3531.1,3531.0,0.5]
[1762870362769,7.57423342,3531.1,3531.0,0.5]
[1762870363272,1.1337408,3531.1,3531.0,4.2798589]
[1762870363699,1.1337408,3531.1,3531.0,1.4478]
[1762870363860,1.1337408,3531.1,3531.0,0.5]
[1762870364065,1.1723408,3531.1,3531.0,0.5]
[1762870364267,1.1337408,3531.1,3531.0,0.5]
[1762870364982,5.83056158,3531.1,3531.0,0.5]
[1762870365177,5.86916158,3531.1,3530.9,0.686]
[1762870365389,5.86916158,3531.1,3531.0,0.5]
[1762870368333,1.1715408,3531.1,3531.0,0.5]
[1762870368536,5.82976158,3531.1,3531.0,0.5]
[1762870368835,5.82976158,3531.1,3531.0,0.9922]
[1762870370251,5.82976158,3531.1,3531.0,1.4478]
[1762870370740,5.86836158,3531.1,3531.0,0.5]
[1762870371105,1.1337408,3531.0,3530.9,0.686]
[1762870371296,1.1723408,3531.0,3530.9,0.686]
[1762870371704,1.1723408,3531.0,3530.9,1.1782]
[1762870371705,1.1337408,3531.0,3530.9,1.1782]
[1762870371924,6.34,3531.5,3530.9,1.1782]
[1762870371925,1.1337408,3531.4,3531.0,2.8320589]
[1762870372106,1.1337408,3531.4,3531.3,0.9922]
[1762870372309,1.1337408,3531.4,3531.3,1.6772]
[1762870372632,1.1337408,3531.4,3531.3,2.1328]
[1762870373299,5.83056158,3531.4,3531.3,2.1328]
[1762870373931,1.1337408,3531.4,3531.3,2.1328]
[1762870374144,5.83056158,3531.4,3531.3,2.1328]
[1762870374351,10.56598236,3531.4,3531.3,1.185]
[1762870374522,5.86916158,3531.4,3531.3,1.185]
[1762870374729,5.83056158,3531.4,3531.3,1.185]
[1762870375131,5.83056158,3531.4,3531.3,1.6772]
[1762870375440,5.83056158,3531.4,3531.3,2.1328]
[1762870376211,5.83056158,3531.4,3531.3,1.6772]
[1762870378449,5.83056158,3531.4,3531.3,1.185]
[1762870379119,10.52738236,3531.4,3531.3,1.185]
[1762870379720,5.83056158,3531.4,3531.3,1.185]
[1762870379920,5.83056158,3531.4,3531.3,1.6793]
[1762870380868,5.83056158,3531.4,3530.6,0.5]
[1762870380869,6.3786,3531.4,3530.6,0.5]
[1762870381153,4.8452387,3530.7,3530.3,1.184]
[1762870381318,1.6723408,3531.3,3530.3,1.1676]
[1762870381531,0.5,3531.3,3531.2,0.1954]
[1762870381730,4.8452387,3531.5,3531.4,0.5]
[1762870382156,4.8452387,3531.5,3531.4,4.30963812]
[1762870383136,0.002,3531.6,3531.5,3.33165793]
[1762870383342,0.002,3531.6,3531.5,4.30955793]
[1762870384704,0.002,3531.6,3531.5,4.99355793]
[1762870384839,0.002,3531.6,3531.5,1.6783]
[1762870385195,4.8472387,3531.6,3531.5,4.50995793]
[1762870385942,4.8472387,3531.6,3531.5,4.99355793]
[1762870386876,0.002,3531.6,3531.5,4.99355793]
[1762870388178,0.002,3531.6,3531.5,1.6783]
[1762870388472,7.48927185,3531.6,3531.5,0.684]
[1762870388660,1.1337408,3531.5,3531.4,0.5]
[1762870388859,1.1337408,3531.5,3531.4,1.183]
[1762870389071,1.1337408,3531.5,3531.4,2.1609]
[1762870389272,1.1337408,3531.5,3531.4,1.6773]
[1762870389713,0.002,3531.6,3531.5,3.33165793]
[1762870389848,0.002,3531.6,3531.5,4.30955793]
[1762870392187,0.002,3531.6,3531.5,3.82595793]
[1762870392393,0.0398,3531.6,3531.4,0.683]
[1762870392570,0.0012,3531.6,3531.5,0.5]
[1762870392954,0.0012,3531.6,3531.5,3.33165793]
[1762870393153,0.0398,3531.6,3531.5,0.5]
[1762870394185,0.0398,3531.6,3531.5,3.33165793]
[1762870394862,0.0012,3531.6,3531.5,3.33165793]
[1762870395272,0.0012,3531.6,3531.5,3.32595793]
[1762870395564,0.0012,3531.6,3531.5,3.82595793]
[1762870397064,0.0012,3531.6,3531.5,4.30955793]
[1762870397590,0.0012,3531.6,3531.5,3.33165793]
[1762870400491,0.0012,3531.6,3531.5,3.82595793]
[1762870400657,0.0012,3531.6,3531.5,3.33165793]
[1762870400857,0.0012,3531.6,3531.5,3.82595793]
[1762870401257,0.0012,3531.6,3531.5,4.30955793]
[1762870402323,0.0012,3531.6,3531.5,4.71506193]
[1762870402815,0.0012,3531.6,3531.5,4.30955793]
[1762870403360,0.0012,3531.6,3531.5,4.71506193]
[1762870403560,0.002,3531.9,3531.8,3.7369214]
[1762870403798,0.002,3531.9,3531.8,4.9132214]
[1762870404146,0.002,3531.9,3531.8,5.3968214]
[1762870404799,0.002,3531.9,3531.8,4.9913174]
[1762870414525,4.84201337,3531.9,3531.8,4.9913174]
[1762870416097,0.002,3531.9,3531.8,4.9913174]
[1762870416304,0.0012,3531.9,3531.8,4.9913174]
[1762870417344,0.0012,3531.9,3531.8,5.3968214]
[1762870426018,0.0012,3531.9,3531.8,4.2312214]
[1762870426222,0.0012,3531.9,3531.8,3.8257174]
[1762870426530,0.0012,3531.9,3531.8,4.9112214]
[1762870426752,0.0012,3531.9,3531.8,5.3911214]
[1762870427328,0.0012,3531.9,3531.8,4.9112214]
[1762870427532,0.0012,3531.9,3531.8,4.0114174]
[1762870428743,0.0012,3531.9,3531.8,4.4723174]
[1762870428948,0.0012,3531.9,3531.8,5.3577214]
[1762870429270,0.0012,3531.9,3531.8,5.3587214]
[1762870429840,0.0012,3531.9,3531.8,4.8788214]
[1762870430178,0.0012,3531.9,3531.8,5.3587214]
[1762870430949,0.0012,3531.9,3531.8,4.8788214]
[1762870431154,0.0808,3531.9,3531.8,1.181]
[1762870431475,0.041,3531.9,3531.8,1.181]
[1762870432075,0.0808,3531.9,3531.8,1.181]
[1762870432278,1.2145408,3531.9,3531.8,0.681]
[1762870433752,1.1747408,3531.9,3531.8,0.681]
[1762870433937,1.2145408,3531.9,3531.8,0.681]
[1762870434372,1.1747408,3531.9,3531.8,0.681]
[1762870435688,1.1349408,3531.9,3531.8,1.181]
[1762870435842,1.1747408,3531.9,3531.8,1.181]
[1762870440245,1.1739408,3531.9,3531.8,1.181]
[1762870440972,5.86838021,3531.9,3531.8,1.181]
[1762870441905,5.86838021,3531.9,3531.8,4.0124174]
[1762870442296,12.24818021,3531.9,3531.5,0.001]
[1762870442598,10.56241962,3531.6,3531.5,0.001]
[1762870443002,10.56241962,3531.6,3531.0,0.398]
[1762870443003,1.2133408,3531.5,3531.0,0.398]
[1762870443311,10.56241962,3531.2,3531.0,0.398]
[1762870443618,10.56241962,3531.2,3531.1,0.501]
[1762870443823,0.002,3532.6,3532.2,3.33109676]
[1762870444024,0.002,3532.6,3532.2,2.75255881]
[1762870444316,0.1552,3532.3,3532.2,1.179]
[1762870444534,2.52189921,3532.3,3532.2,0.5]
[1762870444820,1.1337408,3532.2,3532.1,0.5]
[1762870445120,0.002,3532.3,3532.2,3.33109676]
[1762870446276,0.002,3532.3,3532.2,0.5]
[1762870446520,0.1552,3532.3,3532.2,0.5]
[1762870446810,0.1552,3532.3,3532.2,3.33109676]
[1762870447113,0.002,3532.3,3532.2,3.33109676]
[1762870448187,0.002,3532.3,3532.2,0.5]
[1762870448526,0.002,3532.3,3532.2,3.33109676]
[1762870448817,0.002,3532.3,3532.2,4.28959676]
[1762870449401,0.002,3532.3,3532.2,1.4585]
[1762870449599,1.2889408,3532.3,3532.2,0.5]
[1762870449805,1.4421408,3532.3,3532.0,0.5]
[1762870450119,1.1357408,3532.3,3532.0,0.5]
[1762870450291,0.1532,3532.1,3532.0,0.5]
[1762870453086,0.3064,3532.1,3531.8,0.001]
[1762870453288,7.80675566,3531.9,3531.8,0.001]
[1762870453826,7.95995566,3531.9,3531.8,0.001]
[1762870453992,10.7912929,3531.9,3531.8,0.001]
[1762870455387,7.95995566,3531.9,3531.8,0.001]
[1762870455594,10.7912929,3531.9,3531.8,0.001]
[1762870457309,4.23287804,3531.9,3531.8,0.001]
[1762870457517,11.4702929,3531.9,3531.8,0.001]
[1762870458316,17.8102929,3531.9,3531.8,0.001]
[1762870459248,13.01301486,3531.9,3531.8,0.001]
[1762870459456,7.2868,3531.9,3531.8,0.001]
[1762870459629,8.4205408,3531.9,3531.8,0.001]
[1762870459823,7.2868,3531.9,3531.8,0.001]
[1762870460347,8.5737408,3531.9,3531.8,0.001]
[1762870460585,8.4205408,3531.9,3531.8,0.001]
[1762870460751,7.7415408,3531.9,3531.8,0.001]
[1762870461249,7.6269408,3531.9,3531.8,0.001]
[1762870462238,7.7414408,3531.9,3531.8,0.001]
[1762870462552,7.4737408,3531.9,3531.8,0.9647]
[1762870462734,7.4737408,3531.9,3531.8,1.4595]
[1762870462929,7.4737408,3531.9,3531.8,0.9647]
[1762870464257,1.1337408,3531.9,3531.8,4.2909174]
[1762870464767,1.1337408,3531.9,3531.8,3.7961174]
[1762870465074,1.1337408,3531.9,3531.8,4.2909174]
[1762870465770,0.002,3532.3,3532.2,0.5]
[1762870465968,0.002,3532.3,3532.2,0.9887]
[1762870466170,0.002,3532.3,3532.2,1.4408]
[1762870466376,0.002,3532.3,3532.2,4.27189676]
[1762870469339,0.002,3532.3,3532.2,4.70571172]
[1762870469540,0.002,3532.3,3532.2,4.67740076]
[1762870469962,0.002,3532.6,3532.5,3.33085633]
[1762870470274,0.0012,3532.7,3532.6,3.73628019]
[1762870470581,0.0012,3532.7,3532.6,5.35508019]
[1762870470756,0.0012,3532.7,3532.6,5.38338795]
[1762870470959,0.0012,3532.7,3532.6,5.35508019]
[1762870473492,1e-08,3532.8,3532.7,4.67700006]
[1762870476274,1e-08,3532.8,3532.7,4.79029829]
[1762870476476,1e-08,3532.8,3532.7,4.67700006]
[1762870478987,1e-08,3532.8,3532.7,5.35400006]
[1762870480830,1e-08,3532.8,3532.7,5.38230702]
[1762870480997,1e-08,3532.8,3532.7,5.35400006]
[1762870485910,1e-08,3532.8,3532.7,5.27925006]
[1762870488350,0.00920001,3532.9,3532.8,3.73611994]
[1762870488547,0.00920001,3532.9,3532.8,4.67691994]
[1762870494251,1e-08,3533.0,3532.9,4.67683982]
[1762870494459,1e-08,3533.0,3532.9,3.44923582]
[1762870494658,1e-08,3533.0,3532.9,3.63653582]
[1762870495359,0.15910001,3533.0,3532.9,0.806]
[1762870495664,0.15910001,3533.0,3532.9,3.63653582]
[1762870495665,1e-08,3533.0,3532.9,3.63653582]
[1762870497086,1e-08,3533.0,3532.9,4.12343582]
[1762870497234,1e-08,3533.0,3532.9,4.57373582]
[1762870498132,1e-08,3533.0,3532.9,4.97923982]
[1762870500174,1e-08,3533.0,3532.9,4.12343582]
[1762870500329,5.00674842,3533.0,3532.9,0.806]
[1762870500531,5.00674842,3533.0,3532.9,3.63653582]
[1762870500730,1e-08,3533.0,3532.9,3.63653582]
[1762870500953,0.15910001,3533.0,3532.9,0.806]
[1762870501166,0.31820001,3533.0,3532.6,0.001]
[1762870501366,0.2037,3532.7,3532.6,0.501]
[1762870501666,0.2037,3532.7,3532.6,0.677]
[1762870501868,0.3628,3532.7,3532.6,0.677]
[1762870502092,0.3628,3532.7,3532.6,0.001]
[1762870502974,7.80984624,3532.7,3532.6,0.001]
[1762870503175,10.6405423,3532.7,3532.6,0.001]
[1762870503656,3.96459713,3532.5,3532.4,0.001]
[1762870503857,4.12369713,3532.5,3532.4,0.001]
[1762870504070,4.28279713,3532.5,3532.4,0.001]
[1762870505285,1.4519408,3532.5,3532.4,0.001]
[1762870505584,4.28279713,3532.5,3532.4,0.001]
[1762870506851,2.83093647,3532.4,3532.3,0.001]
[1762870507057,4.28287727,3532.4,3532.3,0.001]
[1762870507673,0.3182,3532.4,3532.3,0.001]
[1762870507990,3.14913647,3532.4,3532.3,0.001]
[1762870508166,0.3182,3532.4,3532.3,0.001]
[1762870508988,10.62207727,3532.4,3532.3,0.001]
[1762870509292,7.7911408,3532.4,3532.3,0.001]
[1762870509695,10.62207727,3532.4,3532.3,0.001]
[1762870510194,7.7911408,3532.4,3532.3,0.001]
[1762870510565,10.62207727,3532.4,3532.3,0.001]
[1762870512291,10.62127727,3532.4,3532.3,0.001]
[1762870512694,6.6558,3532.4,3532.3,0.001]
[1762870512907,6.4975,3532.4,3532.3,0.001]
[1762870513215,7.4729408,3532.4,3532.3,0.001]
[1762870513703,7.6312408,3532.4,3532.3,0.001]
[1762870514817,7.4729408,3532.4,3532.3,0.501]
[1762870516117,7.4729408,3532.4,3532.3,0.9879]
[1762870517026,7.4729408,3532.4,3532.3,4.26921661]
[1762870518539,7.4729408,3532.4,3532.3,1.4382]
[1762870518696,7.4729408,3532.4,3532.3,0.9879]
[1762870519921,7.4729408,3532.4,3532.3,4.26921661]
[1762870521833,6.3392,3532.4,3532.3,4.26921661]
[1762870522006,1.13374081,3533.0,3532.9,0.5]
[1762870522212,1e-08,3533.0,3532.9,1.175]
[1762870522423,1.13374081,3533.0,3532.9,1.175]
[1762870522794,1.29204081,3533.0,3532.9,1.175]
[1762870523334,1.29204081,3533.0,3532.3,0.001]
[1762870523335,7.76364625,3533.0,3532.6,0.675]
[1762870523632,0.1583,3532.7,3532.6,0.675]
[1762870524000,7.44704625,3533.0,3532.6,0.675]
[1762870524244,1.13374081,3533.0,3532.8,0.5]
[1762870525197,1.13374081,3533.0,3532.9,0.9869]
[1762870526011,1.13374081,3533.0,3532.9,0.5]
[1762870526331,1.13374081,3533.0,3532.9,0.9659]
[1762870527530,1.13374081,3533.0,3532.9,3.79643582]
[1762870527841,1.13374081,3533.0,3532.9,0.9659]
[1762870528401,1.29204081,3533.0,3532.9,0.5]
[1762870529198,1.13374081,3533.0,3532.9,3.29643582]
[1762870529403,1.13374081,3533.0,3532.9,4.25833582]
[1762870529638,1e-08,3533.0,3532.9,4.25833582]
[1762870529936,1e-08,3533.0,3532.9,4.28664117]
[1762870530135,1e-08,3533.0,3532.9,4.25833582]
[1762870532016,1e-08,3533.0,3532.9,4.66383982]
[1762870536137,0.00120001,3533.1,3533.0,3.2359597]
[1762870536376,0.00120001,3533.1,3533.0,5.3387597]
[1762870537978,0.00120001,3533.1,3533.0,0.9659]
[1762870538145,0.00120001,3533.1,3533.0,0.5]
[1762870538342,0.31780001,3533.1,3532.3,0.001]
[1762870538546,0.1583,3532.7,3532.3,0.001]
[1762870538769,0.1583,3532.7,3532.5,0.5]
[1762870538940,0.2021,3532.7,3532.5,0.5]
[1762870539145,1.1337408,3533.0,3532.6,0.5]
[1762870539560,0.1583,3532.7,3532.6,0.5]
[1762870540180,0.00120001,3533.1,3533.0,0.5]
[1762870540353,0.00120001,3533.1,3533.0,0.674]
[1762870540354,0.15950001,3533.1,3533.0,0.674]
[1762870540559,0.31780001,3533.1,3533.0,0.674]
[1762870541756,0.00120001,3533.1,3533.0,1.174]
[1762870541972,0.15950001,3533.1,3533.0,1.174]
[1762870542850,0.00120001,3533.1,3533.0,1.174]
[1762870543045,0.00120001,3533.1,3533.0,4.0044557]
[1762870543250,0.00120001,3533.1,3533.0,4.4703557]
[1762870543955,0.00120001,3533.1,3533.0,4.9322557]
[1762870544847,0.00120001,3533.1,3533.0,4.4703557]
[1762870545056,0.00120001,3533.1,3533.0,4.9322557]
[1762870545266,0.00120001,3533.1,3533.0,5.3377597]
[1762870549452,0.00120001,3533.1,3533.0,5.36606425]
[1762870549661,0.00120001,3533.1,3533.0,5.3377597]
[1762870554010,0.15950001,3533.1,3533.0,0.5]
[1762870554214,0.31780001,3533.1,3533.0,1.174]
[1762870554426,0.00120001,3533.1,3533.0,1.174]
[1762870554611,0.15950001,3533.1,3533.0,1.174]
[1762870554778,0.00120001,3533.1,3533.0,1.174]
[1762870554978,0.15950001,3533.1,3533.0,1.174]
[1762870556088,0.00120001,3533.1,3533.0,1.174]
[1762870556489,0.00120001,3533.1,3533.0,4.4698557]
[1762870556796,0.00120001,3533.1,3533.0,4.9265557]
[1762870557204,0.00120001,3533.1,3533.0,4.4698557]
[1762870557413,0.00120001,3533.1,3533.0,4.9642557]
[1762870557718,0.00120001,3533.1,3533.0,4.9652557]
[1762870557906,0.00120001,3533.1,3533.0,5.3707597]
[1762870560082,0.00040001,3533.1,3533.0,5.3707597]
[1762870560484,0.00040001,3533.1,3533.0,5.39906425]
[1762870560896,0.00040001,3533.1,3533.0,5.3707597]
[1762870561196,0.002,3533.4,3533.3,3.73571937]
[1762870561395,0.002,3533.4,3533.3,4.90322152]
[1762870561623,1e-08,3533.5,3533.4,4.69623928]
[1762870562129,1e-08,3533.5,3533.4,4.72454063]
[1762870562336,1e-08,3533.5,3533.4,4.69623928]
[1762870563829,1e-08,3533.5,3533.4,3.79633528]
[1762870564043,1e-08,3533.5,3533.4,4.46933528]
[1762870564342,6.55458844,3533.5,3533.4,1.173]
[1762870564518,1e-08,3533.5,3533.4,4.00313528]
[1762870564706,1e-08,3533.5,3533.4,1.173]
[1762870564906,0.15830001,3533.5,3533.4,1.173]
[1762870565228,1e-08,3533.5,3533.4,4.00313528]
[1762870565414,1e-08,3533.5,3533.4,1.173]
[1762870565590,1e-08,3533.5,3533.4,4.00313528]
[1762870565814,1e-08,3533.5,3533.4,4.46933528]
[1762870566016,1e-08,3533.5,3533.4,4.86923928]
[1762870566227,1e-08,3533.5,3533.4,5.36923928]
[1762870566744,1e-08,3533.5,3533.4,4.87483928]
[1762870567454,1e-08,3533.5,3533.4,5.36923928]
[1762870568740,1e-08,3533.5,3533.4,4.86923928]
[1762870568945,1e-08,3533.5,3533.4,5.36923928]
[1762870569149,1e-08,3533.5,3533.4,4.87483928]
[1762870569331,1e-08,3533.5,3533.4,5.36923928]
[1762870571762,1e-08,3533.5,3533.4,1.371704]
[1762870571944,1e-08,3533.5,3533.4,5.36923928]
[1762870573426,1e-08,3533.5,3533.4,6.26795454]
[1762870573850,1e-08,3533.5,3533.4,5.36923928]
[1762870575765,1e-08,3533.5,3533.4,4.19623928]
[1762870575968,1e-08,3533.5,3533.4,4.99923928]
[1762870576774,1e-08,3533.5,3533.4,5.00023928]
[1762870578672,1e-08,3533.5,3533.4,4.50583928]
[1762870579539,1e-08,3533.5,3533.4,5.00023928]
[1762870580469,1e-08,3533.5,3533.4,5.89895454]
[1762870580985,1e-08,3533.5,3533.4,5.44723052]
[1762870581370,1e-08,3533.5,3533.4,5.00023928]
[1762870582169,0.15830001,3533.5,3533.4,0.001]
[1762870582485,1.29204081,3533.5,3533.4,1.173]
[1762870582653,1.45034081,3533.5,3533.4,1.173]
[1762870584088,1.29204081,3533.5,3533.4,1.173]
[1762870584287,1.29124081,3533.5,3533.4,1.173]
[1762870585156,1.29124081,3533.5,3533.0,0.001]
[1762870585157,1.44874081,3533.5,3533.0,0.001]
[1762870585357,10.5229875,3533.1,3533.0,0.001]
[1762870585574,3.96443686,3532.7,3532.6,0.001]
[1762870585785,3.96443686,3532.7,3532.0,0.001]
[1762870585786,3.96475741,3532.3,3532.0,0.001]
[1762870585985,10.52362852,3532.3,3532.1,0.203]
[1762870586185,3.96491772,3532.1,3532.0,0.001]
[1762870586388,3.96499787,3532.0,3531.8,0.001]
[1762870586598,3.96499787,3532.0,3531.5,0.001]
[1762870586599,1.1337408,3531.6,3531.5,0.001]
[1762870586914,7.69261191,3531.6,3531.5,0.001]
[1762870587076,7.85011191,3531.6,3531.5,0.001]
[1762870587463,7.69261191,3531.6,3531.5,0.001]
[1762870587703,6.40137111,3532.4,3531.8,2.83135511]
[1762870587998,7.53511191,3532.4,3532.3,0.5]
[1762870588374,7.85011191,3532.4,3532.3,0.5]
[1762870588573,7.85011191,3532.4,3531.9,0.672]
[1762870588887,1.1337408,3531.9,3531.5,0.001]
[1762870589099,1.1337408,3532.0,3531.8,0.5]
[1762870589401,0.315,3531.9,3531.8,0.672]
[1762870589767,1.4487408,3531.9,3531.8,0.672]
[1762870589968,0.315,3531.9,3531.8,0.672]
[1762870590168,7.85011191,3531.9,3531.8,0.672]
[1762870592602,7.69261191,3531.9,3531.8,0.672]
[1762870592801,7.53511191,3531.9,3531.8,1.172]
[1762870593808,7.53511191,3531.9,3531.8,4.0034174]
[1762870594169,7.53511191,3531.9,3531.8,4.4907174]
[1762870594365,7.53511191,3531.9,3531.8,1.6593]
[1762870595215,7.53511191,3531.9,3531.8,4.4907174]
[1762870595581,1.1337408,3531.9,3531.8,4.8962214]
[1762870595908,1.1337408,3531.9,3531.8,5.3541214]
[1762870596107,6.40137111,3532.3,3531.8,2.022704]
[1762870596321,6.40137111,3532.7,3532.6,0.5]
[1762870596522,7.69261191,3532.7,3532.6,1.172]
[1762870596901,7.85011191,3532.7,3532.6,1.172]
[1762870597221,7.69261191,3532.7,3532.6,1.172]
[1762870600694,7.53511191,3532.7,3532.6,1.172]
[1762870601705,1.1337408,3532.7,3532.6,1.6593]
[1762870601893,1.1337408,3532.7,3532.6,2.1172]
[1762870602094,6.40137111,3533.1,3532.6,1.6172]
[1762870602296,6.40137111,3533.1,3532.9,0.5]
[1762870602491,1.1337408,3533.0,3532.9,0.5]
[1762870602692,1.1337408,3533.0,3532.9,1.172]
[1762870604241,1.2912408,3533.0,3532.9,1.172]
[1762870604736,1.1337408,3533.0,3532.9,1.172]
[1762870605100,1.1337408,3533.0,3532.9,2.1172]
[1762870605406,1.0837408,3533.0,3532.9,2.1172]
[1762870605607,6.40337111,3533.5,3533.3,0.5]
[1762870605935,0.315,3533.4,3533.1,0.672]
[1762870606230,2.98784191,3533.2,3533.1,0.672]
[1762870606448,0.315,3533.2,3533.1,0.672]
[1762870606728,0.1575,3533.2,3533.1,0.672]
[1762870608225,1.1337408,3533.4,3533.1,0.672]
[1762870608391,1.0837408,3533.4,3533.2,0.5]
[1762870610413,0.1567,3533.3,3533.2,0.5]
[1762870611128,1.0837408,3533.4,3533.2,0.5]
[1762870611347,7.53511191,3533.3,3533.2,0.5]
[1762870611551,7.48511191,3533.3,3533.2,1.4452]
[1762870613505,1.1337408,3533.3,3533.2,1.4452]
[1762870614008,1.1337408,3533.2,3532.4,0.5]
[1762870614239,10.56486824,3532.5,3532.4,0.5]
[1762870614679,10.72156824,3532.5,3532.4,0.5]
[1762870616550,7.73401191,3532.5,3532.4,0.5]
[1762870616925,6.40137111,3532.9,3532.4,0.4589]
[1762870617132,7.53511191,3532.9,3532.8,0.5]
[1762870617430,1.1337408,3532.9,3532.8,1.171]
[1762870618039,1.2904408,3532.9,3532.8,0.5]
[1762870618224,1.2904408,3532.9,3532.8,1.171]
[1762870619865,1.1337408,3532.9,3532.8,1.171]
[1762870620226,1.1337408,3532.9,3532.8,1.6299]
[1762870620753,1.1337408,3532.9,3532.8,2.1263]
[1762870620948,6.40137111,3533.1,3532.8,2.1263]
[1762870621157,6.40137111,3533.1,3533.0,0.9589]
[1762870621362,7.53511191,3533.1,3533.0,1.4553]
[1762870621929,7.69181191,3533.1,3533.0,0.5]
[1762870622130,7.69181191,3533.1,3533.0,1.171]
[1762870622959,7.60164325,3533.1,3533.0,1.171]
[1762870624572,7.44494325,3533.1,3533.0,1.171]
[1762870625670,7.60164325,3533.1,3533.0,1.171]
[1762870625963,10.43201884,3533.1,3533.0,1.171]
[1762870626163,7.60164325,3533.1,3533.0,0.5]
[1762870626364,7.60164325,3533.1,3533.0,1.171]
[1762870627362,7.60164325,3533.1,3533.0,1.172]
[1762870628190,7.60164325,3533.1,3533.0,0.501]
[1762870628338,7.44494325,3533.1,3533.0,1.172]
[1762870631531,7.44494325,3533.1,3533.0,1.6309]
[1762870631736,7.44494325,3533.1,3533.0,2.1273]
[1762870632145,7.44494325,3533.1,3533.0,1.6309]
[1762870632466,7.44414325,3533.1,3533.0,1.6309]
[1762870632848,1.1329408,3533.1,3533.0,1.6309]
[1762870633761,1.1329408,3533.1,3533.0,1.172]
[1762870634334,1.1329408,3533.1,3533.0,0.9599]
[1762870634538,1.1329408,3533.1,3533.0,1.6309]
[1762870636101,1.1329408,3533.1,3533.0,0.501]
[1762870636102,1.2896408,3533.1,3533.0,0.501]
[1762870636396,1.2896408,3533.1,3532.6,0.001]
[1762870636397,3.96443686,3532.7,3532.6,0.001]
[1762870636595,10.58903931,3532.7,3532.6,0.344]
[1762870636802,10.58903931,3532.7,3532.6,0.001]
[1762870637117,2.83101661,3532.3,3531.5,0.001]
[1762870637399,4.16421855,3531.6,3531.5,0.001]
[1762870637599,3.96539873,3531.5,3531.4,0.001]
[1762870637815,3.96539873,3531.5,3531.1,0.011]
[1762870637816,3.9656393,3531.2,3531.1,0.011]
[1762870638096,10.43354175,3531.2,3531.1,0.533]
[1762870638287,10.59024175,3531.2,3531.1,0.533]
[1762870639293,7.60164325,3531.2,3531.1,0.533]
[1762870639798,1.1337408,3531.2,3531.1,1.6737]
[1762870640880,1.1337408,3531.2,3531.1,1.4919]
[1762870641979,1.1337408,3531.2,3531.1,0.9699]
[1762870642216,1.1337408,3531.2,3531.1,1.6409]
[1762870643614,1.1337408,3531.2,3531.1,2.3191]
[1762870643780,1.1337408,3531.2,3531.1,4.6510787]
[1762870643975,1.1337408,3531.2,3531.1,1.6409]
[1762870644162,1.1337408,3531.2,3531.1,0.511]
[1762870644368,1.1337408,3531.2,3531.1,2.3191]
[1762870645204,1.1337408,3531.2,3531.1,1.8227]
[1762870645899,1.1337408,3531.2,3531.1,1.182]
[1762870646102,1.2904408,3531.2,3531.1,1.182]
[1762870646467,1.1337408,3531.2,3531.1,1.182]
[1762870646672,1.2904408,3531.2,3531.1,0.011]
[1762870646870,1.2904408,3531.2,3531.1,0.682]
[1762870647564,4.1223393,3531.2,3531.1,0.682]
[1762870647971,1.2904408,3531.2,3531.1,0.682]
[1762870648790,1.1337408,3531.2,3531.1,1.8668]
[1762870649017,1.2904408,3531.2,3531.1,0.682]
[1762870650534,1.2904408,3531.2,3531.1,0.011]
[1762870650989,1.2904408,3531.2,3531.1,0.681]
[1762870651500,1.2904408,3531.2,3531.1,0.011]
[1762870651695,1.2904408,3531.2,3531.1,0.681]
[1762870652105,4.1223393,3531.2,3531.1,0.681]
[1762870652325,1.2904408,3531.2,3531.1,0.681]
[1762870652498,1.1337408,3531.2,3531.1,1.6721]
[1762870652698,1.1337408,3531.2,3531.1,1.8658]
[1762870652915,1.1337408,3531.2,3531.1,1.6721]
[1762870653116,1.2904408,3531.2,3531.1,1.181]
[1762870653384,1.2904408,3531.2,3531.1,0.511]
[1762870653614,4.2790393,3531.2,3531.1,0.011]
[1762870653922,4.2790393,3531.2,3531.1,0.681]
[1762870654925,1.2904408,3531.2,3531.1,1.181]
[1762870655431,4.1223393,3531.2,3531.1,1.181]